fUSD/lending_fUSD_20241223
["ID","MTS","AMOUNT","RATE_DAILY","PERIOD"]
[346378086,1734924645018,-500.0,0.00019399,2]
[346378087,1734924645026,-500.0,0.00019399,2]
[346378088,1734924645035,-511.40131379,0.00019399,2]
[346378089,1734924645044,-500.0,0.00019399,2]
[346378090,1734924645053,-3000.0,0.000194,2]
[346378091,1734924645062,-480970.63567168,0.000194,5]
[346378092,1734924645073,-150.0,0.00019411,4]
[346378093,1734924645083,-510.54503207,0.00019445,2]
[346378094,1734924645093,-1852.81077047,0.00019447,2]
[346378095,1734924645102,-1852.81077047,0.00019456,2]
[346378096,1734924645113,-510.54503207,0.00019461,2]
[346378097,1734924645122,-23220.89167399,0.00019463,2]
[346378098,1734924645131,-200.0,0.00019468,2]
[346378099,1734924645140,-1852.81077047,0.00019469,2]
[346378100,1734924645148,-510.54503207,0.00019471,2]
[346378101,1734924645158,-1852.81077047,0.00019478,2]
[346378102,1734924645167,-23220.89167399,0.0001948,2]
[346378103,1734924645178,-23220.89167399,0.00019481,2]
[346378104,1734924645187,-23220.89167399,0.00019483,2]
[346378105,1734924645197,-23220.89167399,0.00019483,2]
[346378106,1734924645206,-510.54503207,0.00019484,2]
[346378107,1734924645216,-510.54503207,0.00019485,2]
[346378108,1734924645225,-1852.81077047,0.00019485,2]
[346378109,1734924645235,-1852.81077047,0.0001949,2]
[346378110,1734924645244,-510.54503207,0.00019491,2]
[346378111,1734924645253,-23220.89167399,0.00019492,2]
[346378112,1734924645262,-150000.0,0.000195,2]
[346378113,1734924645271,-40000.0,0.000195,3]
[346378114,1734924645280,-40000.0,0.000195,2]
[346378115,1734924645290,-161.41087815,0.000195,2]
[346378116,1734924645298,-40000.0,0.000195,4]
[346378117,1734924645307,-4996.15513601,0.000195,2]
[346378118,1734924645316,-207.39127643,0.000195,2]
[346378119,1734924645332,-15571.33166111,0.000195,2]
[346378120,1734924645341,-164.25579756,0.000195,2]
[346378121,1734924645350,-164.25579756,0.000195,2]
[346378122,1734924645359,-164.25,0.000195,2]
[346378123,1734924645368,-184.78777226,0.000195,2]
[346378124,1734924645378,-184.78777226,0.000195,2]
[346378125,1734924645387,-184.78777226,0.000195,2]
[346378126,1734924645395,-184.78,0.000195,2]
[346378127,1734924645404,-1015.0,0.000195,2]
[346378128,1734924645414,-318.28297629,0.000195,2]
[346378129,1734924645423,-158.50444537,0.000195,2]
[346378130,1734924645432,-2277.95553658,0.000195,2]
[346378131,1734924645441,-201.39233801,0.000195,3]
[346378132,1734924645449,-152.52115859,0.00019536,2]
[346378133,1734924645459,-500.0,0.0001957,2]
[346378134,1734924645468,-1302.27,0.0001957,2]
[346378135,1734924645478,-981.99,0.0001957,2]
[346378136,1734924645487,-1018.45,0.0001957,2]
[346378137,1734924645496,-500.0,0.0001957,2]
[346378138,1734924645505,-4849.58,0.0001957,2]
[346378139,1734924645514,-605.15,0.0001957,2]
[346378140,1734924645524,-1414.69,0.0001957,2]
[346378141,1734924645536,-1618.97,0.0001957,2]
[346378142,1734924645545,-500.0,0.0001957,2]
[346378143,1734924645555,-2671.05,0.0001957,2]
[346378144,1734924645564,-2837.45,0.0001957,2]
[346378145,1734924645579,-1214.87,0.0001957,2]
[346378146,1734924645589,-500.0,0.0001957,2]
[346378147,1734924645598,-882.17,0.0001957,2]
[346378148,1734924645608,-2000.82,0.0001957,2]
[346378149,1734924645618,-2383.62,0.0001957,2]
[346378150,1734924645628,-1385.03,0.0001957,2]
[346378151,1734924645637,-1000.34,0.0001957,2]
[346378152,1734924645647,-500.0,0.0001957,2]
[346378153,1734924645656,-737.98,0.0001957,2]
[346378154,1734924645665,-7032.76,0.0001957,2]
[346378155,1734924645675,-500.0,0.0001957,2]
[346378156,1734924645685,-500.0,0.0001957,2]
[346378157,1734924645695,-852.22,0.0001957,2]
[346378158,1734924645704,-500.0,0.00019573,2]
[346378159,1734924645714,-500.0,0.00019588,2]
[346378160,1734924645726,-999.96,0.00019589,7]
[346378161,1734924645736,-999.96,0.00019589,7]
[346378162,1734924645746,-999.96,0.00019589,7]
[346378163,1734924645756,-999.96,0.00019589,7]
[346378164,1734924645766,-999.96,0.00019589,7]
[346378165,1734924645775,-999.96,0.00019589,7]
[346378167,1734924645785,-999.96,0.00019589,7]
[346378168,1734924645794,-999.96,0.00019589,7]
[346378169,1734924645804,-999.96,0.00019589,7]
[346378170,1734924645814,-999.96,0.00019589,7]
[346378171,1734924645826,-999.96,0.00019589,7]
[346378172,1734924645836,-999.96,0.00019589,7]
[346378173,1734924645845,-999.96,0.00019589,7]
[346378174,1734924645855,-999.96,0.00019589,7]
[346378175,1734924645864,-999.96,0.00019589,7]
[346378176,1734924645874,-999.96,0.00019589,7]
[346378177,1734924645883,-999.96,0.00019589,7]
[346378178,1734924645893,-999.96,0.00019589,7]
[346378179,1734924645902,-999.96,0.00019589,7]
[346378180,1734924645912,-999.96,0.00019589,7]
[346378181,1734924645921,-999.96,0.00019589,7]
[346378182,1734924645930,-999.96,0.00019589,7]
[346378183,1734924645939,-999.96,0.00019589,7]
[346378184,1734924645949,-1000.08217148,0.00019589,7]
[346378185,1734924645958,-150.0,0.00019589,4]
[346378186,1734924645967,-150.0,0.00019589,4]
[346378187,1734924645976,-150.0,0.00019589,4]
[346378188,1734924645986,-500.0,0.00019598,2]
[346378189,1734924645995,-91696.0,0.00019599,2]
[346378190,1734924646005,-10000.0,0.00019599,3]
[346378191,1734924646015,-151132.04742074,0.00019599,2]
[346378192,1734924646024,-703.86,0.00019599,2]
[346378193,1734924646033,-1000.0,0.00019599,2]
[346378194,1734924646043,-1000.0,0.00019599,2]
[346378195,1734924646054,-1000.0,0.00019599,2]
[346378196,1734924646071,-1000.0,0.00019599,2]
[346378197,1734924646084,-1000.0,0.00019599,2]
[346378198,1734924646093,-963.00167803,0.00019599,2]
[346378199,1734924646103,-26984.5997021,0.00019599,7]
[346378200,1734924646112,-113335.65809054,0.00019599,2]
[346378201,1734924646122,-500.0,0.00019599,2]
[346378202,1734924646138,-268.99286703,0.00019599,2]
[346378203,1734924646147,-666.0,0.00019599,2]
[346378204,1734924646158,-305.89578756,0.00019599,2]
[346378205,1734924646169,-300.0,0.00019599,2]
[346378206,1734924646179,-666.0,0.00019599,2]
[346378207,1734924646188,-300.0,0.00019599,2]
[346378208,1734924646198,-666.0,0.00019599,2]
[346378209,1734924646207,-300.0,0.00019599,2]
[346378210,1734924646216,-15430.8101883,0.000196,2]
[346378211,1734924646225,-2254520.20162102,0.000196,3]
[346378212,1734924646235,-24379.34130607,0.000196,3]
[346378213,1734924646244,-12310851.96830258,0.000196,2]
[346378229,1734924646521,-500.0,0.00019396,2]
[346378232,1734924646534,-1969.49,0.0001957,2]
[346378235,1734924646543,-2622.33413923,0.000196,2]
[346378239,1734924646555,-4284.08219739,0.000196,2]
[346378241,1734924646567,-3081.34881669,0.000196,2]
[346378243,1734924646585,-2654.06790646,0.000196,2]
[346378246,1734924646597,-2866.30784725,0.000196,2]
[346378257,1734924646700,-442.61210009,0.000196,2]
[346378277,1734924646879,-5541.68407102,0.000196,2]
[346378279,1734924646892,-4435.12383198,0.000196,2]
[346378282,1734924646903,-808.37339128,0.000196,2]
[346378284,1734924646915,-437.5677695,0.000196,2]
[346378287,1734924646938,-2606.39956949,0.000196,2]
[346378290,1734924646949,-466.5999998,0.000196,2]
[346378334,1734924647353,-9592.0,0.00018919,2]
[346378336,1734924647362,-500.0,0.00019397,2]
[346378338,1734924647372,-25923.39954632,0.000196,2]
[346378340,1734924647383,-9849.16828037,0.000196,2]
[346378342,1734924647395,-435.64141315,0.000196,2]
[346378359,1734924647547,-56.33664196,0.000196,2]
[346378363,1734924647571,-9559.55000001,0.000196,2]
[346378365,1734924647585,-6806.8384954,0.000196,2]
[346378367,1734924647596,-8847.32969744,0.000196,2]
[346378370,1734924647609,-5363.82640682,0.000196,2]
[346378372,1734924647620,-978.79830355,0.000196,2]
[346378374,1734924647631,-814.50245992,0.000196,2]
[346378376,1734924647643,-604.799997,0.000196,2]
[346378378,1734924647654,-939.00831506,0.000196,2]
[346378455,1734924648519,-704.9042855,0.000196,2]
[346378457,1734924648535,-1138.3242965,0.000196,2]
[346378459,1734924648547,-2326.25910729,0.000196,2]
[346378462,1734924648562,-49087.60718723,0.000196,2]
[346378464,1734924648575,-201377.15030259,0.000196,2]
[346378467,1734924648590,-39487.17226742,0.000196,2]
[346378469,1734924648602,-383.5086327,0.000196,2]
[346378551,1734925266694,154.78,0.00018054,30]
[346378552,1734925368792,164.96,0.00010137,2]
[346378553,1734925747594,29848.89603929,0.0002,16]
[346378554,1734925748132,-222.90059439,0.00013599,2]
[346378555,1734925748152,-150.0,0.00013671,2]
[346378556,1734925748173,-800.0,0.00013699,2]
[346378557,1734925748195,-800.0,0.00013699,2]
[346378558,1734925748216,-800.0,0.00013699,2]
[346378559,1734925748236,-800.0,0.00013699,2]
[346378560,1734925748256,-357.60833761,0.00013699,2]
[346378564,1734925807159,-442.39166239,0.00013699,2]
[346378565,1734925807184,-800.0,0.00013699,2]
[346378566,1734925807208,-800.0,0.00013699,2]
[346378567,1734925807233,-800.0,0.00013699,2]
[346378568,1734925807262,-800.0,0.00013699,2]
[346378569,1734925807285,-800.0,0.00013699,2]
[346378570,1734925807310,-557.60833761,0.00013699,2]
[346378585,1734925832613,-242.39166239,0.00013699,2]
[346378586,1734925832623,-800.0,0.00013699,2]
[346378587,1734925832632,-523.12434076,0.00013699,2]
[346378588,1734925832644,-276.87565924,0.00013699,2]
[346378589,1734925832653,-342.37,0.00013699,2]
[346378590,1734925832663,-800.0,0.00013699,2]
[346378591,1734925832672,-153.06,0.00013699,2]
[346378592,1734925832681,-800.0,0.00013699,2]
[346378593,1734925832691,-685.99,0.00015788,2]
[346378594,1734925832699,-186.96,0.00016712,2]
[346378595,1734925832708,-79401.0871448,0.00017,2]
[346378596,1734925832719,-82089.12579775,0.00017,2]
[346378597,1734925832730,-82394.75378164,0.00017,2]
[346378612,1734925838468,-589587.03327581,0.00017,2]
[346378613,1734925838479,-2584.26,0.00017374,2]
[346378614,1734925838490,-1000.0,0.00017387,2]
[346378615,1734925838501,-150.0,0.00017387,2]
[346378616,1734925838514,-23890.0,0.00017391,2]
[346378617,1734925838531,-250.0,0.00017398,2]
[346378618,1734925838542,-250.0,0.00017403,2]
[346378619,1734925838554,-2183.32,0.00017431,2]
[346378620,1734925838565,-2751.0,0.00017575,2]
[346378621,1734925838575,-150.0,0.0001763,2]
[346378622,1734925838586,-150.0,0.0001763,2]
[346378623,1734925838596,-150.0,0.0001763,2]
[346378624,1734925838606,-151.40368294,0.0001763,2]
[346378625,1734925838616,-843.69,0.00017661,2]
[346378626,1734925838626,-150.0,0.0001768,2]
[346378627,1734925838635,-150.0,0.00017731,2]
[346378628,1734925838645,-150.0,0.00017733,2]
[346378629,1734925838655,-200.0,0.00017774,2]
[346378630,1734925838665,-150.0,0.00017781,2]
[346378631,1734925838675,-150.0,0.00017831,2]
[346378632,1734925838685,-150.0,0.00017836,2]
[346378633,1734925838695,-150.0,0.00017848,2]
[346378634,1734925838705,-150.0,0.00017881,2]
[346378635,1734925838715,-168.56,0.00017901,2]
[346378636,1734925838725,-822.88,0.00017923,2]
[346378637,1734925838734,-150.0,0.00017932,2]
[346378638,1734925838744,-200.0,0.00017934,2]
[346378639,1734925838753,-150.0,0.00017939,2]
[346378640,1734925838762,-358.37,0.00017954,2]
[346378641,1734925838777,-1500.0,0.00017978,2]
[346378642,1734925838788,-150.0,0.00017982,2]
[346378643,1734925838797,-150.0,0.00018032,2]
[346378644,1734925838808,-1202.78,0.00018041,2]
[346378645,1734925838818,-886.88,0.00018041,2]
[346378646,1734925838827,-150.0,0.00018043,2]
[346378647,1734925838836,-1528.64,0.00018046,2]
[346378648,1734925838846,-685.99,0.00018052,2]
[346378649,1734925838856,-800.0,0.00018055,2]
[346378651,1734925838866,-800.0,0.00018055,2]
[346378653,1734925838878,-150.0,0.00018065,2]
[346378655,1734925838888,-300.0,0.00018066,2]
[346378656,1734925838898,-150.0,0.00018082,2]
[346378658,1734925838908,-304.65162082,0.000181,2]
[346378661,1734925838919,-150.0,0.00018132,2]
[346378662,1734925838928,-150.0,0.00018146,2]
[346378665,1734925838938,-186.33,0.00018168,2]
[346378666,1734925838947,-150.0,0.00018183,2]
[346378668,1734925838957,-150.0,0.00018233,2]
[346378670,1734925838967,-150.0,0.00018249,2]
[346378672,1734925838976,-565.11,0.0001828,2]
[346378674,1734925838986,-150.0,0.00018283,2]
[346378676,1734925838995,-150.0,0.00018283,2]
[346378679,1734925839005,-150.0,0.00018333,2]
[346378681,1734925839015,-150.0,0.00018352,2]
[346378683,1734925839027,-11586.64,0.00018356,2]
[346378685,1734925839036,-150.0,0.00018384,2]
[346378687,1734925839046,-150.0,0.00018424,2]
[346378688,1734925839055,-150.0,0.00018434,2]
[346378690,1734925839065,-150.0,0.00018455,2]
[346378692,1734925839074,-150.0,0.00018484,2]
[346378694,1734925839083,-150.0,0.00018489,2]
[346378696,1734925839093,-150.0,0.00018501,2]
[346378698,1734925839103,-1500.0,0.00018508,2]
[346378700,1734925839113,-915.45462686,0.00018511,2]
[346378702,1734925839123,-150.0,0.00018523,2]
[346378704,1734925839132,-150.0,0.00018531,2]
[346378706,1734925839142,-150.0,0.00018534,2]
[346378708,1734925839151,-150.0,0.00018544,2]
[346378710,1734925839160,-150.0,0.00018545,2]
[346378712,1734925839170,-1500.0,0.00018553,2]
[346378714,1734925839179,-150.0,0.00018558,2]
[346378716,1734925839189,-250.0,0.00018563,2]
[346378718,1734925839199,-371.43200485,0.00018567,2]
[346378720,1734925839208,-150.0,0.00018574,2]
[346378722,1734925839217,-150.0,0.00018584,2]
[346378724,1734925839226,-150.0,0.0001861,2]
[346378726,1734925839235,-173.57,0.00018619,2]
[346378728,1734925839244,-248.68,0.0001862,2]
[346378730,1734925839254,-150.0,0.00018635,2]
[346378732,1734925839263,-150.0,0.00018639,2]
[346378734,1734925839275,-770.21,0.00018641,2]
[346378736,1734925839284,-150.0,0.00018649,2]
[346378738,1734925839293,-150.0,0.00018661,2]
[346378740,1734925839303,-150.0,0.00018669,2]
[346378742,1734925839312,-150.0,0.00018685,2]
[346378744,1734925839321,-150.0,0.00018693,2]
[346378746,1734925839330,-371.43200485,0.00018694,2]
[346378748,1734925839339,-150.0,0.00018701,2]
[346378750,1734925839348,-173.57,0.00018712,2]
[346378752,1734925839358,-150.0,0.00018718,2]
[346378754,1734925839366,-150.0,0.0001872,2]
[346378756,1734925839375,-150.0,0.00018721,2]
[346378758,1734925839383,-150.0,0.00018734,2]
[346378760,1734925839393,-150.0,0.00018735,2]
[346378762,1734925839402,-150.0,0.00018739,2]
[346378764,1734925839412,-150.0,0.00018764,2]
[346378766,1734925839423,-150.0,0.00018784,2]
[346378768,1734925839432,-150.0,0.00018785,2]
[346378770,1734925839442,-1500.0,0.00018809,2]
[346378772,1734925839452,-150.0,0.00018823,2]
[346378774,1734925839461,-150.0,0.00018836,2]
[346378776,1734925839471,-150.0,0.00018842,2]
[346378778,1734925839480,-1500.0,0.00018852,2]
[346378780,1734925839490,-150.0,0.00018857,2]
[346378782,1734925839501,-150.0,0.0001886,2]
[346378784,1734925839511,-150.0,0.00018867,2]
[346378786,1734925839526,-150.9742857,0.00018882,2]
[346378787,1734925839538,-150.0,0.00018886,2]
[346378789,1734925839548,-150.0,0.00018897,2]
[346378791,1734925839557,-150.0,0.00018911,2]
[346378793,1734925839567,-150.0,0.00018936,2]
[346378795,1734925839577,-150.0,0.00018936,2]
[346378797,1734925839587,-150.0,0.0001895,2]
[346378799,1734925839596,-371.43200485,0.00018964,2]
[346378801,1734925839606,-150.0,0.0001897,2]
[346378803,1734925839615,-150.0,0.00018978,2]
[346378804,1734925839625,-406.82461251,0.00018982,2]
[346378805,1734925839634,-150.0,0.00018986,2]
[346378806,1734925839644,-150.0,0.00018988,2]
[346378807,1734925839655,-5000.0,0.00019,2]
[346378808,1734925839666,-5005.33737054,0.00019,3]
[346378809,1734925839676,-150.0,0.00019011,2]
[346378810,1734925839686,-150.0,0.00019023,2]
[346378811,1734925839696,-150.0,0.00019024,2]
[346378812,1734925839705,-150.0,0.00019025,2]
[346378813,1734925839715,-150.0,0.00019034,2]
[346378814,1734925839724,-1500.0,0.00019034,2]
[346378815,1734925839734,-150.0,0.00019037,2]
[346378816,1734925839743,-659.31,0.00019041,2]
[346378817,1734925839753,-270.73687022,0.00019052,2]
[346378818,1734925839763,-150.0,0.00019071,2]
[346378819,1734925839778,-150.0,0.00019074,2]
[346378820,1734925839788,-150.0,0.00019078,2]
[346378821,1734925839797,-150.0,0.00019085,2]
[346378822,1734925839807,-150.0,0.00019087,2]
[346378823,1734925839817,-1500.0,0.00019087,2]
[346378824,1734925839827,-150.0,0.0001909,2]
[346378825,1734925839836,-150.0,0.0001909,2]
[346378826,1734925839845,-150.0,0.00019097,2]
[346378827,1734925839855,-150.0,0.00019098,2]
[346378828,1734925839864,-1500.0,0.00019111,2]
[346378829,1734925839874,-150.0,0.00019113,2]
[346378830,1734925839884,-150.0,0.00019119,2]
[346378831,1734925839895,-150.0,0.0001913,2]
[346378832,1734925839905,-150.0,0.00019137,2]
[346378833,1734925839914,-150.0,0.0001914,2]
[346378834,1734925839924,-150.0,0.00019148,2]
[346378835,1734925839933,-151.0,0.00019152,2]
[346378836,1734925839943,-150.0,0.00019154,2]
[346378837,1734925839952,-150.0,0.00019171,2]
[346378838,1734925839964,-150.0,0.00019177,2]
[346378839,1734925839974,-150.0,0.00019187,4]
[346378840,1734925839983,-150.0,0.00019189,2]
[346378841,1734925839992,-159.53175115,0.00019195,2]
[346378842,1734925840002,-9277.0,0.00019202,2]
[346378843,1734925840012,-159.5317511,0.0001922,2]
[346378844,1734925840023,-150.0,0.00019221,2]
[346378845,1734925840033,-150.0,0.00019226,2]
[346378846,1734925840042,-150.0,0.00019237,4]
[346378847,1734925840051,-159.5317511,0.00019246,2]
[346378848,1734925840061,-8547.84257917,0.00019247,2]
[346378849,1734925840071,-1032.3296,0.0001926,2]
[346378850,1734925840080,-150.0,0.0001927,2]
[346378851,1734925840090,-150.0,0.0001927,2]
[346378852,1734925840100,-159.5317511,0.00019271,2]
[346378853,1734925840110,-8547.84257916,0.00019275,2]
[346378854,1734925840119,-150.0,0.0001928,4]
[346378855,1734925840128,-150.0,0.00019285,2]
[346378856,1734925840140,-150.0,0.00019288,4]
[346378857,1734925840154,-1183.22,0.00019295,2]
[346378858,1734925840164,-1300.26,0.00019295,2]
[346378859,1734925840174,-3791.64,0.00019295,2]
[346378860,1734925840184,-5772.89574292,0.00019295,2]
[346378861,1734925840195,-1333.85,0.00019295,2]
[346378862,1734925840204,-905.3117,0.00019296,2]
[346378863,1734925840214,-159.5317511,0.00019297,2]
[346378864,1734925840224,-8547.84257916,0.00019303,2]
[346378865,1734925840234,-150.0,0.00019312,2]
[346378866,1734925840244,-150.0,0.00019312,2]
[346378867,1734925840254,-5772.89574292,0.00019318,2]
[346378868,1734925840265,-159.5317511,0.00019322,2]
[346378869,1734925840280,-8547.84257916,0.00019331,2]
[346378870,1734925840290,-150.0,0.00019338,4]
[346378871,1734925840301,-5772.89574292,0.00019341,2]
[346378872,1734925840311,-159.5317511,0.00019348,2]
[346378873,1734925840321,-150.0,0.00019349,2]
[346378874,1734925840331,-150.0,0.00019358,2]
[346378875,1734925840340,-8547.84257916,0.00019359,2]
[346378876,1734925840349,-150.0,0.0001936,2]
[346378877,1734925840359,-941.07,0.00019363,2]
[346378878,1734925840368,-976.02,0.00019363,2]
[346378879,1734925840378,-579.94,0.00019363,2]
[346378880,1734925840389,-1355.74,0.00019363,2]
[346378881,1734925840398,-500.0,0.00019363,2]
[346378882,1734925840408,-500.0,0.00019363,2]
[346378883,1734925840418,-500.0,0.00019363,2]
[346378884,1734925840427,-2719.23,0.00019363,2]
[346378885,1734925840436,-500.0,0.00019363,2]
[346378886,1734925840445,-6644.41,0.00019363,2]
[346378888,1734925840454,-500.0,0.00019363,2]
[346378889,1734925840464,-1551.51,0.00019363,2]
[346378890,1734925840473,-2284.31,0.00019363,2]
[346378891,1734925840484,-2559.75,0.00019363,2]
[346378892,1734925840493,-1327.32,0.00019363,2]
[346378893,1734925840502,-1164.25,0.00019363,2]
[346378894,1734925840512,-958.66,0.00019363,2]
[346378895,1734925840526,-1917.45,0.00019363,2]
[346378896,1734925840536,-6739.72,0.00019363,2]
[346378897,1734925840546,-816.71,0.00019363,2]
[346378898,1734925840555,-1314.46,0.00019363,2]
[346378899,1734925840565,-500.0,0.00019363,2]
[346378900,1734925840574,-500.0,0.00019363,2]
[346378901,1734925840584,-500.0,0.00019363,2]
[346378902,1734925840594,-1044.94,0.00019363,2]
[346378903,1734925840603,-521.76,0.00019363,2]
[346378904,1734925840613,-584.42,0.00019363,2]
[346378905,1734925840623,-707.23,0.00019363,2]
[346378906,1734925840632,-500.0,0.00019363,2]
[346378907,1734925840641,-500.0,0.00019363,2]
[346378908,1734925840651,-500.0,0.00019363,2]
[346378909,1734925840660,-5722.42,0.00019363,2]
[346378910,1734925840670,-504.12720034,0.00019363,2]
[346378911,1734925840679,-500.0,0.00019363,2]
[346378912,1734925840688,-500.0,0.00019363,2]
[346378913,1734925840698,-1823.73,0.00019363,2]
[346378914,1734925840708,-500.0,0.00019363,2]
[346378915,1734925840717,-829.23,0.00019363,2]
[346378916,1734925840726,-5772.89574292,0.00019363,2]
[346378917,1734925840736,-500.0,0.00019364,2]
[346378918,1734925840745,-500.0,0.00019364,2]
[346378919,1734925840755,-500.0,0.00019364,2]
[346378920,1734925840764,-509.65173689,0.00019364,2]
[346378921,1734925840776,-500.0,0.00019364,2]
[346378922,1734925840785,-500.0,0.00019364,2]
[346378923,1734925840795,-500.0,0.00019364,2]
[346378924,1734925840805,-521.83537187,0.00019364,2]
[346378925,1734925840814,-500.0,0.00019364,2]
[346378926,1734925840823,-500.0,0.00019364,2]
[346378927,1734925840832,-500.0,0.00019364,2]
[346378928,1734925840841,-500.0,0.00019364,2]
[346378929,1734925840851,-500.0,0.00019364,2]
[346378930,1734925840860,-500.0,0.00019364,2]
[346378931,1734925840869,-500.0,0.00019364,2]
[346378932,1734925840883,-516.26974838,0.00019364,2]
[346378933,1734925840893,-500.0,0.00019364,2]
[346378934,1734925840902,-512.54742432,0.00019364,2]
[346378935,1734925840912,-500.0,0.00019364,2]
[346378936,1734925840923,-821.46,0.00019364,2]
[346378937,1734925840932,-206.84865177,0.00019364,2]
[346378938,1734925840941,-1563.83,0.00019364,2]
[346378939,1734925840951,-500.0,0.00019364,2]
[346378940,1734925840961,-500.0,0.00019364,2]
[346378941,1734925840972,-505.95410868,0.00019364,2]
[346378942,1734925840981,-2021.882176,0.00019364,2]
[346378943,1734925840991,-1410.9,0.00019364,2]
[346378944,1734925841000,-1641.960193,0.00019364,2]
[346378945,1734925841010,-150.622576,0.00019364,2]
[346378946,1734925841019,-500.0,0.00019364,2]
[346378947,1734925841029,-1218.61,0.00019364,2]
[346378948,1734925841038,-2766.09,0.00019364,2]
[346378949,1734925841049,-807.47,0.00019364,2]
[346378950,1734925841058,-5626.39,0.00019364,2]
[346378951,1734925841068,-500.0,0.00019364,2]
[346378952,1734925841077,-1551.84,0.00019364,2]
[346378953,1734925841087,-500.0,0.00019364,2]
[346378954,1734925841096,-500.0,0.00019364,2]
[346378955,1734925841105,-500.0,0.00019364,2]
[346378956,1734925841116,-6797.04,0.00019364,2]
[346378957,1734925841125,-500.0,0.00019364,2]
[346378958,1734925841135,-500.0,0.00019364,2]
[346378959,1734925841144,-1144.45,0.00019364,2]
[346378960,1734925841153,-1259.71,0.00019364,2]
[346378961,1734925841163,-469.26276172,0.00019364,2]
[346378962,1734925841172,-500.0,0.00019364,2]
[346378963,1734925841181,-1615.66,0.00019364,2]
[346378964,1734925841190,-1196.14,0.00019364,2]
[346378965,1734925841200,-500.0,0.00019364,2]
[346378966,1734925841209,-500.0,0.00019364,2]
[346378967,1734925841219,-1532.91,0.00019364,2]
[346378968,1734925841228,-500.0,0.00019364,2]
[346378969,1734925841237,-1376.37,0.00019364,2]
[346378970,1734925841246,-500.0,0.00019364,2]
[346378971,1734925841256,-500.0,0.00019364,2]
[346378972,1734925841265,-500.0,0.00019364,2]
[346378973,1734925841277,-1524.23,0.00019364,2]
[346378974,1734925841287,-1719.07,0.00019364,2]
[346378975,1734925841296,-513.63444858,0.00019364,2]
[346378976,1734925841305,-1812.41,0.00019364,2]
[346378977,1734925841314,-500.0,0.00019364,2]
[346378978,1734925841323,-4081.01,0.00019364,2]
[346378979,1734925841332,-3743.49,0.00019364,2]
[346378980,1734925841342,-766.22,0.00019364,2]
[346378981,1734925841351,-1325.03,0.00019364,2]
[346378982,1734925841360,-500.0,0.00019364,2]
[346378983,1734925841369,-419.27273289,0.00019364,2]
[346378984,1734925841379,-2059.66,0.00019364,2]
[346378985,1734925841388,-500.0,0.00019364,2]
[346378986,1734925841398,-500.0,0.00019364,2]
[346378987,1734925841407,-1513.01,0.00019364,2]
[346378988,1734925841416,-7996.69,0.00019364,2]
[346378989,1734925841426,-500.0,0.00019364,2]
[346378990,1734925841435,-196.49958496,0.00019364,2]
[346378991,1734925841445,-500.0,0.00019364,2]
[346378992,1734925841455,-500.0,0.00019364,2]
[346378993,1734925841465,-1298.59,0.00019364,2]
[346378994,1734925841474,-516.84,0.00019364,2]
[346378995,1734925841483,-500.0,0.00019364,2]
[346378996,1734925841493,-500.0,0.00019364,2]